Cogmind - Beta 17 @@@ ROGUE MODE // 2026.06.27 @ 11:17:58 Player: Bikerider58 Result: Destroyed by G-47 Trooper with Particle Gun Performance ------------- Evolutions (1) 500 Regions Visited (6) 1200 Robots Destroyed (94) 470 Value Destroyed (2150) 2150 Prototype IDs (8) 160 Alien Tech Used (0) 0 Bonus (370) 370 TOTAL SCORE: 4850 Bonus ------- High Alert Combat Kills 8 Follower Combat Kills 362 Cogmind --------- Core Integrity 0/400 Matter 291/300 Energy 170/170 System Corruption 1% Temperature Cool (14) Movement Treading (160) Location -8/Mines Parts ------- > --- POWER (1) -------- Light Neutrino Core > --- PROPULSION (2) --- Light Treads Light Treads > --- UTILITY (3) ------ Large Storage Unit Improved Targeting Computer Hardened Light Armor Plating > --- WEAPON (3) ------- Light Assault Rifle Improved Assault Rifle > --- INVENTORY (15) --- Cold Fusion Reactor Light Treads Advanced Myomer Leg High-capacity Storage Unit Huge Storage Unit Gravity Neutralizer Hacking Suite Advanced Component Analysis Suite Improved Arc Thrower Beamcaster Light Assault Rifle Improved Light Cannon Rocket Launcher Katana Peak State ------------ > --- POWER ------------ Light Neutrino Core > --- PROPULSION ------- Light Treads Light Treads > --- UTILITY ---------- Large Storage Unit Improved Targeting Computer Advanced Component Analysis Suite > --- WEAPON ----------- Improved Assault Rifle Improved Assault Rifle > --- INVENTORY -------- Cold Fusion Reactor Light Treads Light Treads Advanced Myomer Leg Hardened Light Armor Plating Light Assault Rifle Light Assault Rifle Improved Light Cannon Rocket Launcher Katana Deploy-a-Sentry [Rating: 29] Favorites ----------- Power Heavy Ion Engine Engine Heavy Ion Engine Power Core Light Neutrino Core Propulsion Light Treads Treads Light Treads Leg Aluminum Leg Wheel Wheel Utility Improved Targeting Computer Device Seismic Detector Storage High-capacity Storage Unit Processor Improved Targeting Computer Protection Medium Armor Plating Weapon Heavy Assault Rifle Energy Gun Improved EM Shotgun Energy Cannon Advanced Beam Cannon Ballistic Gun Heavy Assault Rifle Ballistic Cannon Light Cannon Launcher Rocket Launcher Special Melee Weapon Datajack Build | -11 -10 -10 -9 -9 -9 -8 ------- Run | Yrd Mat Min Mat Min Exi Min Slots Evolved 2 | . . . 2 . . . Power . | . . . . . . . Propulsion . | . . . . . . . Utility 1 | . . . 1 . . . Weapon 1 | . . . 1 . . . Parts Attached 57 | 7 10 7 19 . 13 1 Power 5 | 1 1 1 1 . 1 . Engine 4 | 1 1 1 1 . . . Core 1 | . . . . . 1 . Reactor . | . . . . . . . Propulsion 14 | 2 . 3 6 . 2 1 Treads 12 | 2 . 1 6 . 2 1 Leg 1 | . . 1 . . . . Wheel 1 | . . 1 . . . . Hover . | . . . . . . . Flight . | . . . . . . . Utility 15 | 2 3 . 4 . 6 . Device 5 | 1 1 . 1 . 2 . Storage 5 | 1 2 . 1 . 1 . Processor 1 | . . . 1 . . . Hackware . | . . . . . . . Protection 4 | . . . 1 . 3 . Artifact . | . . . . . . . Weapon 23 | 2 6 3 8 . 4 . Energy Gun 9 | 1 4 2 2 . . . Energy Cannon 1 | . . . 1 . . . Ballistic Gun 9 | 1 . . 5 . 3 . Ballistic Cannon 1 | . 1 . . . . . Launcher 2 | . . 1 . . 1 . Special Weapon . | . . . . . . . Impact Weapon . | . . . . . . . Slashing Weapon . | . . . . . . . Piercing Weapon . | . . . . . . . Special Melee Weapon 1 | . 1 . . . . . Unidentified Prototypes 5 | . 1 . 3 . 1 . Corrupted Parts 1 | . 1 . . . . . System Corruption 2 | . 2 . . . . . Parts Lost 18 | . . 7 1 . 9 1 Power 1 | . . 1 . . . . Propulsion 4 | . . 2 . . 2 . Utility 4 | . . 1 . . 3 . Weapon 9 | . . 3 1 . 4 1 Highest Loss Streak 7 | . . 7 1 . 6 1 To Critical Strikes 4 | . . . . . 4 . Average Backups 15 | . 9 11 17 20 14 14 Power . | . . . . 1 1 1 Propulsion 3 | . . 1 5 5 4 2 Utility 3 | . 3 4 4 6 2 5 Weapon 6 | . 4 4 6 8 6 5 Tool/Special . | . . . . . . . Unused Backups 32 | . 4 . 10 1 6 11 Power 5 | . . . . . 3 2 Propulsion 6 | . . . 3 . . 3 Utility 9 | . 1 . 4 . 3 1 Weapon 12 | . 3 . 3 1 . 5 Tool/Special . | . . . . . . . Average Slot Usage (%) 93 | . 97 83 98 100 87 99 Engine 9 | . 14 13 10 11 4 . Core 1 | . . . . . 3 11 Treads 20 | . 27 18 20 22 18 22 Device 4 | . 3 4 14 . 1 . Storage 12 | . 23 14 11 11 11 11 Processor 6 | . . . 3 11 11 11 Protection 6 | . . . 2 11 8 11 Energy Gun 6 | . 25 18 9 . . . Ballistic Gun 22 | . 1 9 22 33 27 32 Peak Build Rating 29 | 7 14 14 23 18 29 27 Average Rating 17 | 4 11 10 19 18 19 25 On Entrance 13 | . 7 14 10 18 18 28 Avg Prop Armor Cover (%) 10 | . . 11 10 . . 7 Naked Turns . | . . . . . . . Heaviest Build 66 | 12 38 35 66 62 62 40 Greatest Support 40 | 40 40 40 40 40 40 40 Greatest Overweight (x) 4 | . 1 3 4 1 1 1 Average Overweight (x) . | . . 1 1 1 . . Largest Inventory Capacity 25 | 8 25 15 20 20 20 20 Average Capacity 17 | 6 14 15 17 20 17 15 Most Carried 20 | 2 15 15 20 20 20 18 Average Carried 15 | . 9 11 17 19 15 14 Final Capacity 20 | 8 15 15 20 20 20 15 Final Carried 20 | 2 15 10 20 20 19 14 Class Distribution -------------------- 55% | Scavenger-Gunner 38% | Mutant 5% | Gunner Dominant Class ---------------- Mutant | -10/Materials Mutant | -10/Mines Scavenger-Gunner | -9/Materials Scavenger-Gunner | -9/Mines Scavenger-Gunner | -9/Exiles Gunner | -8/Mines Resources | -11 -10 -10 -9 -9 -9 -8 ----------- Run | Yrd Mat Min Mat Min Exi Min Matter Collected 2115 | 234 208 68 603 208 689 105 Remotely . | . . . . . . . Salvage Created 3636 | 118 1128 . 1487 443 317 143 Parts 229 | 9 59 . 91 20 47 3 Haulers Intercepted 8 | . 2 . 6 . . . Recyclers Shooed . | . . . . . . . Parts Field Recycled . | . . . . . . . Retrieved Matter . | . . . . . . . Parts Self-Destructed . | . . . . . . . Prevented . | . . . . . . . Parts Restored . | . . . . . . . Kills | -11 -10 -10 -9 -9 -9 -8 ------- Run | Yrd Mat Min Mat Min Exi Min Combat Hostiles Destroyed 61 | . 20 1 28 9 2 1 Guns 56 | . 17 1 27 9 1 1 Cannons 1 | . . . 1 . . . AOE 4 | . 3 . . . 1 . Classes Destroyed 14 | 2 6 1 1 2 2 . Worker 3 | . 3 . . . . . Tunneler 3 | 2 . . . 1 . . Hauler 8 | . 2 . 6 . . . Recycler 5 | 1 1 . 2 . . 1 Operator 3 | . 1 . 2 . . . Watcher 2 | . 2 . . . . . Swarmer 13 | . 3 . 10 . . . Grunt 37 | . 17 . 14 6 . . Brawler 1 | . . . . 1 . . Duelist 3 | . . . . 2 . 1 Sentry 4 | . . . 4 . . . Demolisher 1 | . . 1 . . . . Zionite 7 | . . . . . 7 . Assembled 1 | . . . . . 1 . Best Kill Streak 7 | 3 5 1 7 2 5 2 Combat Bots Only 5 | . 3 1 5 2 1 1 Max Kills in Single Turn 2 | 2 2 1 2 1 1 1 Gunslinging 1 | . . . 1 . . . Exploded 1 | . 1 . . . 1 . Melee . | . . . . . . . Uniques/NPCs Destroyed 4 | . . . . . 4 . 8R-AWN (-9/Exiles) EX-DEC (-9/Exiles) EX-HEX (-9/Exiles) EX-BIN (-9/Exiles) Combat | -11 -10 -10 -9 -9 -9 -8 -------- Run | Yrd Mat Min Mat Min Exi Min Hostile Shots Fired 347 | . 46 23 113 31 66 68 Missed 73 | . 9 4 26 13 5 16 Hits 274 | . 37 19 87 18 61 52 Melee 1 | . . . . 1 . . Projectile 273 | . 37 19 87 17 61 52 AOE 11 | . . 11 . . . . Critical Strikes 30 | . . . 1 1 28 . Part Disruptions 3 | . . 1 . . . 2 Damage Taken 4085 | . 477 602 896 242 1425 443 Core 612 | . 66 142 109 45 180 70 Absorbed by Shields . | . . . . . . . Regen/Repaired (Parts) 222 | . . . 222 . . . Core Remaining (%) 58 | 100 . 16 . . . . Volleys Fired 234 | 4 54 7 64 26 67 12 Largest 3 | 2 2 2 3 3 3 3 Hottest 163 | 60 90 90 163 66 69 66 Shots Fired 573 | 8 108 11 189 78 153 26 Gun 561 | 8 108 10 184 78 147 26 Cannon 5 | . . . 5 . . . Launcher 7 | . . 1 . . 6 . Special . | . . . . . . . Kinetic 378 | 4 3 2 118 78 147 26 Thermal 77 | 4 3 . 70 . . . Explosive 6 | . . . . . 6 . Electromagnetic 112 | . 102 9 1 . . . Robot Hit Streak 45 | 4 20 3 9 10 45 3 Robot Miss Streak 6 | 1 4 5 6 3 5 1 Penetration Max . | . . . . . . . Secondary Targets 10 | . 2 . 4 2 1 1 Max Gunslinging Chain 1 | . 1 . 1 1 1 1 Shots Hit Robots 389 | 5 85 6 98 55 123 17 Core Hits 174 | 4 56 4 47 20 36 7 Critical Kills 1 | . . . . 1 . . Critical Parts Destroyed 3 | . . . 1 1 1 . Critical Strikes 7 | . . . 4 2 1 . Burn 3 | . . . 3 . . . Destroy 4 | . . . 1 2 1 . Melee Attacks 2 | . 2 . . . . . Impact . | . . . . . . . Slashing . | . . . . . . . Piercing . | . . . . . . . Sneak Attacks 2 | . 2 . . . . . Combat Hostiles . | . . . . . . . Follow-up Attacks . | . . . . . . . Damage Inflicted 6524 | 68 1635 164 1729 754 1977 197 Guns 5847 | 68 1324 79 1637 754 1788 197 Cannons 62 | . . . 62 . . . Explosions 559 | . 292 78 . . 189 . Melee . | . . . . . . . Ramming 56 | . 19 7 30 . . . Kinetic 3644 | 36 11 13 845 754 1788 197 Thermal 1176 | 32 302 . 842 . . . Explosive 189 | . . . . . 189 . Electromagnetic 1459 | . 1303 144 12 . . . Impact . | . . . . . . . Slashing . | . . . . . . . Piercing . | . . . . . . . Highest Corruption 2 | . 2 2 . . . 1 Average Corruption 1 | . 2 2 . . . 1 Corruption Purged . | . . . . . . . Corruption Blocked . | . . . . . . . Effects 9 | . 1 7 . . . 1 Message Errors 2 | . . 2 . . . . Matter Fused 3 | . . 2 . . . 1 Energy Discharges 2 | . . 2 . . . . Data Loss (minor) 1 | . 1 . . . . . Data Loss (major) 1 | . . 1 . . . . Overload Shots . | . . . . . . . Overflow Damage . | . . . . . . . Projectiles . | . . . . . . . Explosions . | . . . . . . . Melee . | . . . . . . . Knockbacks . | . . . . . . . Impact . | . . . . . . . Kinetic . | . . . . . . . Secondary . | . . . . . . . Self-Inflicted Damage 70 | . 51 19 . . . . Shots 3 | . 2 1 . . . . Rammed 12 | . 6 1 5 . . . Targets Rammed 12 | . 6 1 5 . . . Kicked . | . . . . . . . Crushed . | . . . . . . . Highest Temperature 315 | . 216 15 315 176 . 76 Average Temperature 60 | . 55 5 71 61 . 35 Received Heat Transfer 842 | . 222 20 300 138 . 162 Effects 1 | . . . 1 . . . Energy Bleed 1 | . . . 1 . . . Siege Activations . | . . . . . . . Martial Activations . | . . . . . . . Shielding Activations . | . . . . . . . Robots Disrupted . | . . . . . . . Combat Hostiles . | . . . . . . . Robots Corrupted . | . . . . . . . Combat Hostiles . | . . . . . . . Parts Fried 8 | . 8 . . . . . Impact Corruptions . | . . . . . . . Robots Melted . | . . . . . . . Combat Hostiles . | . . . . . . . Parts Melted 3 | . . . 3 . . . Heat Transferred 2165 | 75 375 . 1715 . . . Parts Sabotaged . | . . . . . . . Parts Stolen . | . . . . . . . Parts Stripped . | . . . . . . . Power Chain Reactions 5 | . 5 . . . . . Alert | -11 -10 -10 -9 -9 -9 -8 ------- Run | Yrd Mat Min Mat Min Exi Min Maximum Alert Level 2 | . 1 . 2 . . . Low Security (%) 67 | 100 72 100 24 100 . 100 Level 1 30 | . 27 . 71 . . . Level 2 1 | . . . 4 . . . Level 3 . | . . . . . . . Level 4 . | . . . . . . . Level 5 . | . . . . . . . High Security . | . . . . . . . Max Security . | . . . . . . . Peak Influence 412 | 10 351 122 412 146 . 127 Initial 141 | . . 122 . 141 . . Average 143 | 1 148 25 282 29 . 77 Influence Increases 2208 | 15 705 101 955 240 . 192 Destroy 0b10 Robot/C 1420 | . 400 60 640 180 . 140 Destroy 0b10 Robot/NC 120 | 15 45 . 50 5 . 5 Destroy Leader 350 | . 108 20 152 40 . 30 Allied During Kill 29 | . . 6 6 . . 17 Successful Hack 40 | . 17 . 23 . . . Select Force Hacks 90 | . 60 . 30 . . . Disable Machine 75 | . 30 15 30 . . . Destroy Structure 24 | . 15 . 9 . . . Lose Combat Pursuer 60 | . 30 . 15 15 . . Influence Decreases 2116 | 15 390 416 591 604 . 100 Entered New Map 416 | . . 193 . 223 . . Time Decay 1603 | 15 390 166 561 381 . 90 Lost Part 20 | . . . 10 . . 10 Lost Ally 77 | . . 57 20 . . . Squads Dispatched 11 | . 6 . 5 . . . Investigation 8 | . 5 . 3 . . . Extermination . | . . . . . . . Reinforcement 3 | . 1 . 2 . . . Assault . | . . . . . . . Garrison . | . . . . . . . Intercept . | . . . . . . . Searches Triggered . | . . . . . . . Construction Impeded . | . . . . . . . Haulers Reinforced . | . . . . . . . Active Scanning Responses . | . . . . . . . Cargo Convoy Interrupts . | . . . . . . . Stealth | -11 -10 -10 -9 -9 -9 -8 --------- Run | Yrd Mat Min Mat Min Exi Min Distress Signals 11 | . 2 . 9 . . . Communications Jammed . | . . . . . . . Distress Signals . | . . . . . . . Times Spotted 122 | . 29 13 47 11 13 9 Peak Tracking Total 9 | . 5 5 7 3 9 6 Tactical Retreats 14 | . 2 2 1 1 7 1 Traps | -11 -10 -10 -9 -9 -9 -8 ------- Run | Yrd Mat Min Mat Min Exi Min Traps Triggered 5 | . 4 . 1 . . . Indirectly . | . . . . . . . Trap Hack Attempts . | . . . . . . . Triggered . | . . . . . . . Disarmed . | . . . . . . . Reprogrammed . | . . . . . . . Reused . | . . . . . . . Traps Extracted . | . . . . . . . Installed . | . . . . . . . Triggered . | . . . . . . . Machines | -11 -10 -10 -9 -9 -9 -8 ---------- Run | Yrd Mat Min Mat Min Exi Min Machines Disabled 8 | . 2 1 2 . 3 . Max in Single Turn 1 | . 1 1 1 . 1 . Machines Repaired . | . . . . . . . Machines Dismantled . | . . . . . . . Machines Sabotaged . | . . . . . . . Overloaded Fab Kills . | . . . . . . . Hacking | -11 -10 -10 -9 -9 -9 -8 --------- Run | Yrd Mat Min Mat Min Exi Min Machines Accessed 11 | . 4 . 6 . 1 . Terminals 4 | . 2 . 2 . . . Fabricators . | . . . . . . . Repair Stations 2 | . . . 2 . . . Recycling Units 3 | . 2 . 1 . . . Scanalyzers 1 | . . . 1 . . . Garrison Access . | . . . . . . . Total Hacks 29 | . 8 . 14 . 7 . Successful 19 | . 5 . 7 . 7 . Failed 9 | . 3 . 6 . . . Catastrophic 2 | . 1 . 1 . . . Database Lockouts 1 | . . . 1 . . . Manual 11 | . 8 . 3 . . . Terminals 11 | . 6 . 5 . . . Fabricators . | . . . . . . . Repair Stations 6 | . . . 6 . . . Recycling Units 3 | . 2 . 1 . . . Scanalyzers 2 | . . . 2 . . . Garrison Access . | . . . . . . . Terminal Hacks 10 | . 2 . 1 . 7 . Record 7 | . . . . . 7 . Part Schematic 1 | . 1 . . . . . Robot Schematic 1 | . 1 . . . . . Registered Prototypes 1 | . . . 1 . . . Fabricator Hacks . | . . . . . . . Repair Station Hacks 4 | . . . 4 . . . Scan Component 2 | . . . 2 . . . Repair 2 | . . . 2 . . . Recycling Unit Hacks . | . . . . . . . Scanalyzer 1 | . . . 1 . . . Retrieve Study 1 | . . . 1 . . . Garrison Access Hacks . | . . . . . . . Unauthorized Hacks 4 | . 3 . 1 . . . Terminals 1 | . 1 . . . . . Botnet 1 | . 1 . . . . . Fabricators . | . . . . . . . Repair Stations . | . . . . . . . Recycling Units 3 | . 2 . 1 . . . Tunnel 3 | . 2 . 1 . . . Scanalyzers . | . . . . . . . Garrison Access . | . . . . . . . Data Cores Recovered . | . . . . . . . Used . | . . . . . . . Hacking Detections 7 | . 2 . 5 . . . Full Trace Events 1 | . . . 1 . . . Feedback Events . | . . . . . . . Feedback Blocked . | . . . . . . . Robot Schematics Acquired 1 | . 1 . . . . . Robots Built . | . . . . . . . Authchips . | . . . . . . . Time . | . . . . . . . Total Robot Build Rating . | . . . . . . . Part Schematics Acquired 1 | . 1 . . . . . Parts Built . | . . . . . . . Authchips . | . . . . . . . Time . | . . . . . . . Total Part Build Rating . | . . . . . . . Part Studies Acquired 1 | . . . 1 . . . Parts Repaired 2 | . . . 2 . . . Time 52 | . . . 52 . . . Parts Recycled . | . . . . . . . Recycled Matter . | . . . . . . . Retrieved Matter . | . . . . . . . Retrieved Components . | . . . . . . . Parts Scanalyzed . | . . . . . . . Part Schematics Acquired . | . . . . . . . Parts Damaged . | . . . . . . . Bothacking | -11 -10 -10 -9 -9 -9 -8 ------------ Run | Yrd Mat Min Mat Min Exi Min Used RIF Installer . | . . . . . . . Robots Hacked 1 | . 1 . . . . . Non-combat 1 | . 1 . . . . . Combat . | . . . . . . . Robot Hacks Applied 2 | . 2 . . . . . parse_system 1 | . 1 . . . . . find_recycling 1 | . 1 . . . . . Relay Couplers Released . | . . . . . . . Fabnet Peak Effective % . | . . . . . . . Robots Rewired . | . . . . . . . Allies Hacked . | . . . . . . . Hacks Repelled . | . . . . . . . Allies | -11 -10 -10 -9 -9 -9 -8 -------- Run | Yrd Mat Min Mat Min Exi Min Total Allies 6 | . . 5 . 1 . . Largest Group 3 | . . 3 1 1 1 . Highest-Rated Group 42 | . . 42 31 31 31 . Highest-Rated Ally 31 | . . 31 31 31 31 . Total Orders . | . . . . . . . Ally Attacks 52 | . . 24 12 . . 16 Total Damage 1160 | . . 233 150 . . 777 Kills 15 | . . 5 4 . . 6 Allies Corrupted . | . . . . . . . Allies Melted . | . . . . . . . Turrets Deployed 1 | . . . . . . 1 Intel | -11 -10 -10 -9 -9 -9 -8 ------- Run | Yrd Mat Min Mat Min Exi Min Active Infowar (turns) 1292 | 20 . . 1272 . . . Seismic 1292 | 20 . . 1272 . . . Robot Analysis Total . | . . . . . . . Derelict Logs Recovered 4 | . . 1 . 3 . . Drone Launches . | . . . . . . . Drone Recoveries . | . . . . . . . Exploration | -11 -10 -10 -9 -9 -9 -8 ------------- Run | Yrd Mat Min Mat Min Exi Min Turns Passed 8177 | 91 985 706 1942 1446 2793 214 Spaces Moved 3348 | 43 436 353 768 571 1080 97 Core 2 | 2 . . . . . . Treads 3081 | 41 436 229 627 571 1080 97 Legs . | . . . . . . . Wheels 265 | . . 124 141 . . . Hover . | . . . . . . . Flight . | . . . . . . . Fastest Speed 50 | 50 160 125 125 240 160 160 Average Speed 207 | 154 160 175 202 240 229 170 Slowest Speed 240 | 160 240 240 240 240 240 240 Overloaded Moves . | . . . . . . . Propulsion Burnouts . | . . . . . . . Robots Hopped . | . . . . . . . Potential Cave-ins . | . . . . . . . Cave-ins Triggered . | . . . . . . . Exploration Rate (%) 65 | 4 78 86 70 99 88 34 Regions Visited 6 Branch Regions 4 Pre-discovered Areas 5 | . 2 1 1 . 1 . Known Exits Taken . | . . . . . . . Unknown Exits Taken 6 | 1 1 1 1 1 1 . Scrap Searched 2 | . . 1 . 1 . . Spaces Dug . | . . . . . . . Terrain Destroyed 23 | . 13 . . . 10 . Melee . | . . . . . . . Projectile . | . . . . . . . AOE 23 | . 13 . . . 10 . Terrain Rammed . | . . . . . . . Walls Destroyed . | . . . . . . . Machines Disabled . | . . . . . . . Actions | -11 -10 -10 -9 -9 -9 -8 --------- Run | Yrd Mat Min Mat Min Exi Min Total 4119 | 56 610 425 1025 600 1277 126 Wait 305 | 1 68 52 109 2 64 9 Move 3342 | 42 435 352 767 570 1079 97 Hop . | . . . . . . . Pick Up 71 | 2 14 2 29 1 22 1 Fast Attach 32 | 7 11 1 9 . 4 . Attach 22 | . 2 5 4 . 11 . Detach 9 | . 4 . 1 . 4 . Swap 26 | . 4 3 9 . 8 2 Drop 64 | . 10 2 28 1 18 5 Fire 234 | 4 54 7 64 26 67 12 Melee 2 | . 2 . . . . . Ram 1 | . . . 1 . . . Kick . | . . . . . . . Crush 11 | . 6 1 4 . . . Escape Stasis . | . . . . . . . Rewire . | . . . . . . . Trap . | . . . . . . . Miscellaneous . | . . . . . . . Route ------- -11/Scrapyard -10/Materials (discovered 2 exits: *Mat / [*Min]) -10/Mines (discovered 2 exits: *Mat x2) -9/Materials (discovered 2 exits: [*Mat] / [*Min]) -9/Mines (discovered 3 exits: [*Mat x2] / *Exi) -9/Exiles -8/Mines History --------- Turn | Location | Event 13 | -11/Scrapyard | Discovered new exit (range 15) 92 | -11/Scrapyard | Entered Materials 317 | -10/Materials | Build established: Mutant 420 | -10/Materials | Discovered new exit (range 9) 588 | -10/Materials | Discovered new exit (range 10) 1077 | -10/Materials | Entered Mines 1182 | -10/Mines | Assembled infested the area 1185 | -10/Mines | Assisted by bots powering up and referring to "LRC-V3" 1187 | -10/Mines | Assisted by a Guerilla fighting off Assembled 1281 | -10/Mines | Lost 4 allies 1308 | -10/Mines | Core integrity fell below 50% 1312 | -10/Mines | Core integrity fell below 20% 1342 | -10/Mines | Lost 7 parts (1p2n1u3w) 1553 | -10/Mines | Received a Rocket Launcher from a helpful Derelict 1747 | -10/Mines | Discovered new exit (range 10) 1763 | -10/Mines | Discovered new exit (range 16) 1783 | -10/Mines | Entered Materials 1783 | -9/Materials | Accompanied by 1 ally 1783 | -9/Materials | Evolved 2 slots: Utility x1, Weapon x1 1788 | -9/Materials | Led the pair of lost Derelicts to an unsafe place 2067 | -9/Materials | Repaired Lgt. Treads 2098 | -9/Materials | Discovered new exit (range 13) 2259 | -9/Materials | Build established: Scavenger-Gunner 2658 | -9/Materials | Discovered new exit (range 3) 2802 | -9/Materials | Repaired Lgt. Treads 3390 | -9/Materials | Central database locked down 3725 | -9/Materials | Entered Mines 3780 | -9/Mines | Learned Materials terminal intel 4301 | -9/Mines | Discovered new exit (range 8) 4334 | -9/Mines | Discovered new exit (range 8) 4741 | -9/Mines | Escorted by a lone wolf Derelict 5158 | -9/Mines | Deemed a non-threat by the Exiles lab entrance 5158 | -9/Mines | Discovered new exit (range 5) 5171 | -9/Mines | Entered Exiles 5171 | -9/Exiles | Accompanied by 1 ally 5231 | -9/Exiles | Met 8R-AWN 5272 | -9/Exiles | Met EX-HEX 5359 | -9/Exiles | Met EX-DEC 5932 | -9/Exiles | Learned location of Zion (-6) 6417 | -9/Exiles | Attacked by the Exiles 6549 | -9/Exiles | Core integrity fell below 50% 6596 | -9/Exiles | Core integrity fell below 20% 6604 | -9/Exiles | Lost 6 parts (1n2u3w) 6607 | -9/Exiles | Destroyed 8R-AWN 6709 | -9/Exiles | Lost 3 parts (1n1u1w) 6945 | -9/Exiles | Build established: Mutant 7049 | -9/Exiles | Destroyed EX-DEC 7055 | -9/Exiles | Destroyed EX-HEX 7075 | -9/Exiles | Destroyed EX-BIN 7128 | -9/Exiles | Found Deploy-a-Sentry 7941 | -9/Exiles | Discovered new exit (range 10) 7964 | -9/Exiles | Left Exiles lab with Deploy-a-Sentry 7964 | -9/Exiles | Entered Mines 7977 | -8/Mines | ME-RLN came to Exiles' defense 7979 | -8/Mines | DAS Turret deployed 8178 | -8/Mines | Destroyed by G-47 Trooper with Particle Gun Last Messages --------------- 07996_ G-47 Trooper destroyed. 08002_ Destroyed Lgt. Nuclear Core. 08002_ L-31 Rogue suffers critical hit (Burn). 08003_ L-31 Rogue destroyed. 08003_ Switching to secondary target: G-47 Trooper. 08004_ Acquired 46 matter. 08004_ G-47 Trooper destroyed. 08008_ Acquired 45 matter. 08010_ R-06 Scavenger destroyed. 08011_ Acquired 4 matter. 08023_ Acquired Imp. Arc Thrower. 08037_ Dropped Lgt. Treads. 08052_ Acquired 10 matter. 08104_ System corrupted: Matter fused (-5). 08143_ K-01 Serf collects debris. 08159_ B-36 Bruiser destroyed. 08160_ Imp. Assault Rifle destroyed. 08165_ K-01 Serf collects debris. 08165_ G-47 Trooper destroyed. 08168_ K-01 Serf collects debris. Map ----- +----------------------------------------------------+ | | | | | | | | | | | | | | | | | ?????????????????????????????????????????????????? | | ?????????????????????????????????????????????????? | | ???###??###??????????????????????????????????????? | | ??## ## ##????????????????????????????????????## | | ??# #???????????????????####?????????????# | | ??# ???????????????????## ##????????????? | | ??# ????????????????????# ##???????????? | | ???# #????????????????????# ##??#######??# | | ???# #???????????????????## #### ##?# | | ???# **=##################### ## #?# | | ???# ! =%[== ! % #?? | | ???## %t%%%[ k%/ ## #?? | | ????#########%######### * #### ##?? | | ????????????#=#?????## ##??# ##?# | | ??# ????????#*###??## #######???# ### | | ?## ######!= ##?# ##?????????# ### | | ?# = ### g##????????# #?## | | ?# ## @##??????# #??#### | | ?# #### % #?????# ##?????#### | | ?###?????# #????# ###?????????? | | ????????# ## #???####????????????? | | ???????# #### #???????????????????? | | ???????# #???## ## ##???????????????????? | | ???????# ?????####### ###????????????????????? | | ???????# ???????????# #??????????????????????? | | ???????## ???????????#t #??????????????????????? | | ????????# ??????????? ??????????????????????? | | ????????# ??????????? ?????????????????????? | | ???????? ???????????? ????????????????????? | | ???????? ??????????????""" #???????????????????? | | ???????????????????????""" #???????????????????? | | ?????????????????????????? ? ????????????????????? | | ?????????????????????????????????????????????????? | | ?????????????????????????????????????????????????? | | ?????????????????????????????????????????????????? | | ?????????????????????????????????????????????????? | | ?????????????????????????????????????????????????? | | ?????????????????????????????????????????????????? | | ?????????????????????????????????????????????????? | | ?????????????????????????????????????????????????? | | ?????????????????????????????????????????????????? | | ?????????????????????????????????????????????????? | +----------------------------------------------------+ Best States ------------- Heat Dissipation 42 Energy Generation 19 Energy Capacity 280 Matter Stores 300 Matter Capacity 300 Sight Range 16 Terrain Scan Density 10 Armor Coverage 225 Evasion (%) 40 Targeting Accuracy 6 Recoil Reduction 2 Item Schematics ----------------- Huge Storage Unit | -10/Materials | Hacked Robot Schematics ------------------ M-13 Machinist | -10/Materials | Hacked Fabricated ------------ Nothing Repaired ---------- Lgt. Treads | 7% | -9/Materials Lgt. Treads | 34% | -9/Materials Studied --------- Hvy. Assault Rifle | -9/Materials | Hacked Alien Tech Used ----------------- None Achievements -------------- None Challenges ------------ None Game ------ Seed SmallReactionSteel Manual? 0 Play Time 00:46:58 Cumulative 294.6 hours Start 2026.06.26 @ 23:55:08 End 2026.06.27 @ 11:17:58 Sessions 3 Manual Loads 0 Difficulty Rogue Special Mode None Game No. 118 Rogue 113 Adventurer 5 Explorer 0 Win Type - Total 8 Types 4/0/2/1/0/0/0/0/0/1 Lore% 74 Gallery% 71 Achievement% 64 Wizard Run 0 Options --------- Layout 0 ASCII 0 Keyboard 0 Movement Numpad Keybinds 0 Fullscreen 1 Font 18/SmallcapsGlow Map View 76x50 Zoom Use 0% Tactical HUD 1 Map Filters NONE Filters NONE Steam 1 RUN: 07f1bc16-285b-4443-8f7e-247aa830ab8c